fUST/lending_fUST_20250715
["ID","MTS","AMOUNT","RATE_DAILY","PERIOD"]
[372190921,1752544232435,-460.0,0.00021917,3]
[372190923,1752544232444,-460.0,0.00021917,3]
[372190925,1752544232453,-460.0,0.00021917,3]
[372190927,1752544232463,-460.0,0.00021917,3]
[372190929,1752544232472,-460.0,0.00021917,3]
[372190931,1752544232483,-523.58708951,0.00021917,3]
[372190933,1752544232493,-460.0,0.00021917,3]
[372190935,1752544232503,-460.0,0.00021917,3]
[372190937,1752544232512,-460.88885659,0.00021917,3]
[372190939,1752544232521,-460.0,0.00021917,3]
[372190941,1752544232530,-460.0,0.00021917,3]
[372190943,1752544232541,-461.35746991,0.00021917,3]
[372190945,1752544232550,-460.0,0.00021917,3]
[372190947,1752544232560,-201.70419707,0.00021917,3]
[372190949,1752544232569,-460.0,0.00021917,3]
[372190951,1752544232579,-460.47346154,0.00021917,3]
[372190953,1752544232588,-460.0,0.00021917,3]
[372190955,1752544232598,-555.63965283,0.00021917,3]
[372190957,1752544232607,-510.77132005,0.00021917,2]
[372190959,1752544232616,-249.287776,0.00021917,8]
[372190961,1752544232625,-460.0,0.00021917,3]
[372190963,1752544232635,-460.0,0.00021917,3]
[372190965,1752544232644,-460.0,0.00021917,3]
[372190967,1752544232654,-460.0,0.00021917,3]
[372190969,1752544232663,-460.0,0.00021917,3]
[372190971,1752544232672,-461.45718206,0.00021917,3]
[372190973,1752544232682,-458.07108097,0.00021917,3]
[372190975,1752544232691,-462.53617757,0.00021917,3]
[372190977,1752544232701,-460.0,0.00021917,3]
[372190979,1752544232710,-460.0,0.00021917,3]
[372190981,1752544232719,-460.0,0.00021917,3]
[372190983,1752544232729,-462.34536393,0.00021917,3]
[372190985,1752544232739,-462.69465909,0.00021917,3]
[372190987,1752544232748,-460.0,0.00021917,3]
[372190989,1752544232758,-460.0,0.00021917,3]
[372190991,1752544232767,-461.10936149,0.00021917,3]
[372190993,1752544232776,-263.30539684,0.00021917,3]
[372190995,1752544232786,-463.35997833,0.00021917,3]
[372190997,1752544232796,-461.53852306,0.00021917,3]
[372190998,1752544232805,-463.68114907,0.00021917,3]
[372191000,1752544232814,-460.0,0.00021917,3]
[372191003,1752544232823,-157.64069832,0.00021917,3]
[372191006,1752544232832,-460.0,0.00021917,3]
[372191010,1752544232842,-460.0,0.00021917,3]
[372191029,1752544233028,-375.11682038,0.00021917,3]
[372191030,1752544233038,-460.0,0.00021917,3]
[372191031,1752544233048,-460.0,0.00021917,3]
[372191033,1752544233058,-460.0,0.00021917,3]
[372191035,1752544233068,-460.0,0.00021917,3]
[372191037,1752544233077,-460.0,0.00021917,3]
[372191039,1752544233088,-462.31412239,0.00021917,3]
[372191041,1752544233098,-460.0,0.00021917,3]
[372191043,1752544233107,-151.0,0.00021917,2]
[372191045,1752544233117,-460.0,0.00021917,3]
[372191046,1752544233128,-460.0,0.00021917,3]
[372191047,1752544233138,-460.0,0.00021917,3]
[372191050,1752544233149,-460.0,0.00021917,3]
[372191052,1752544233159,-471.43148396,0.00021917,3]
[372191054,1752544233169,-517.81444233,0.00021917,3]
[372191056,1752544233179,-415.66399335,0.00021917,3]
[372191058,1752544233194,-44.33600665,0.00021917,3]
[372191059,1752544233204,-460.0,0.00021917,3]
[372191060,1752544233213,-633.38,0.00021917,3]
[372191061,1752544233223,-563.08950723,0.00021917,3]
[372191062,1752544233233,-460.0,0.00021917,3]
[372191063,1752544233242,-460.0,0.00021917,3]
[372191064,1752544233252,-460.0,0.00021917,3]
[372191065,1752544233261,-578.3897921,0.00021917,3]
[372191066,1752544233283,-639.2502079,0.00021917,3]
[372191067,1752544233292,-199.03438238,0.00021917,3]
[372191068,1752544233304,-264.07406961,0.00021917,3]
[372191069,1752544233314,-460.0,0.00021917,3]
[372191070,1752544233323,-460.85464407,0.00021917,3]
[372191071,1752544233333,-460.0,0.00021917,3]
[372191072,1752544233342,-290.40128632,0.00021917,3]
[372191073,1752544233355,-181.66871368,0.00021917,3]
[372191074,1752544233364,-202.44805474,0.00021917,3]
[372191090,1752544238211,-61.3363238,0.00021907,10]
[372191091,1752544238409,-772.10094707,0.00021907,10]
[372191092,1752544238464,-2036.19556999,0.00021907,10]
[372191094,1752544238476,-201.42715914,0.00021907,10]
[372191095,1752544238486,-257.55194526,0.00021917,3]
[372191096,1752544238496,-41.0208956,0.00021917,3]
[372191097,1752544238508,-422.01881063,0.00021917,3]
[372191098,1752544238518,-460.0,0.00021917,3]
[372191099,1752544238528,-460.0,0.00021917,3]
[372191100,1752544238537,-460.0,0.00021917,3]
[372191101,1752544238546,-134.70531822,0.00021917,3]
[372191102,1752544238557,-327.7589191,0.00021917,3]
[372191103,1752544238566,-460.0,0.00021917,3]
[372191104,1752544238575,-461.76049541,0.00021917,3]
[372191105,1752544238584,-465.79199405,0.00021917,3]
[372191106,1752544238605,-460.0,0.00021917,3]
[372191107,1752544238616,-463.52999865,0.00021917,3]
[372191108,1752544238627,-460.0,0.00021917,3]
[372191109,1752544238639,-460.0,0.00021917,3]
[372191110,1752544238649,-313.07881094,0.00021917,3]
[372191111,1752544238660,-644.72,0.00021917,3]
[372191112,1752544238670,-460.0,0.00021917,3]
[372191113,1752544238680,-153.617,0.00021917,2]
[372191114,1752544238690,-460.0,0.00021917,3]
[372191115,1752544238701,-432.37312056,0.00021917,3]
[372191116,1752544238711,-460.0,0.00021917,3]
[372191117,1752544238721,-460.0,0.00021917,3]
[372191118,1752544238730,-460.0,0.00021917,3]
[372191119,1752544238740,-462.90053722,0.00021917,3]
[372191120,1752544238749,-460.0,0.00021917,3]
[372191121,1752544238759,-460.0,0.00021917,3]
[372191122,1752544238769,-461.97402793,0.00021917,3]
[372191123,1752544238779,-460.0,0.00021917,3]
[372191124,1752544238788,-460.0,0.00021917,3]
[372191125,1752544238798,-460.0,0.00021917,3]
[372191126,1752544238807,-460.0,0.00021917,3]
[372191127,1752544238817,-462.40169641,0.00021917,3]
[372191128,1752544238826,-460.0,0.00021917,3]
[372191129,1752544238836,-458.45446972,0.00021917,3]
[372191130,1752544238850,-1.54553028,0.00021917,3]
[372191131,1752544238860,-500.0,0.00021917,3]
[372191132,1752544238870,-502.24900554,0.00021917,3]
[372191133,1752544238882,-462.63179838,0.00021917,3]
[372191134,1752544238892,-460.0,0.00021917,3]
[372191135,1752544238901,-460.0,0.00021917,3]
[372191136,1752544238911,-460.0,0.00021917,3]
[372191137,1752544238921,-460.0,0.00021917,3]
[372191138,1752544238931,-460.0,0.00021917,3]
[372191139,1752544238941,-460.0,0.00021917,3]
[372191140,1752544238950,-460.0,0.00021917,3]
[372191141,1752544238962,-460.0,0.00021917,3]
[372191142,1752544238972,-460.0,0.00021917,3]
[372191143,1752544238983,-460.0,0.00021917,3]
[372191144,1752544238993,-461.04425386,0.00021917,3]
[372191145,1752544239003,-95.90830025,0.00021917,3]
[372191180,1752544240200,-399.24019107,0.00021917,3]
[372191184,1752544240211,-460.0,0.00021917,3]
[372191187,1752544240221,-47.93640068,0.00021917,3]
[372191751,1752544246102,-412.06359932,0.00021917,3]
[372191753,1752544246112,-460.0,0.00021917,3]
[372191755,1752544246121,-460.0,0.00021917,3]
[372191757,1752544246131,-461.58991504,0.00021917,3]
[372191759,1752544246142,-460.0,0.00021917,3]
[372191761,1752544246152,-460.0,0.00021917,3]
[372191762,1752544246162,-460.0,0.00021917,3]
[372191765,1752544246171,-460.0,0.00021917,3]
[372191767,1752544246181,-460.0,0.00021917,3]
[372191769,1752544246191,-460.0,0.00021917,3]
[372191771,1752544246200,-506.64214284,0.00021917,3]
[372191772,1752544246210,-168.9450228,0.00021917,3]
[372191776,1752544246222,-293.41524432,0.00021917,3]
[372191778,1752544246232,-845.56,0.00021917,3]
[372191780,1752544246241,-467.58101968,0.00021917,3]
[372191782,1752544246251,-464.22279176,0.00021917,3]
[372191784,1752544246260,-460.0,0.00021917,3]
[372191786,1752544246270,-143.91585594,0.00021917,3]
[372194682,1752544703987,214.43292321,0.000222,69]
[372194685,1752544997997,162.287352,0.00013699,2]
[372194686,1752545150134,-218.36617812,0.00018735,2]
[372194689,1752545233284,1686.0,0.000273,120]
[372194690,1752545253097,-35.72141016,0.00018735,2]
[372194691,1752545253119,-191.53924502,0.00018735,2]
[372194692,1752545253140,-139.75998568,0.000196,2]
[372194694,1752545254084,-1403.76247684,0.000196,2]
[372194696,1752545317930,914.09,0.000159,2]
[372194698,1752545348116,-300.0,0.00019599,2]
[372194699,1752545348138,-5138.44839905,0.000196,2]
[372194700,1752545352091,-450.8,0.000196,2]
[372194702,1752545365142,-582.73880985,0.000196,2]
[372194703,1752545365163,-151.0,0.000196,2]
[372194704,1752545365183,-531.31799772,0.000197,2]
[372194706,1752545400965,702.14635328,0.00027397,120]
[372194752,1752545432363,-29.18497169,0.000197,2]
[372194753,1752545432373,-204.644331,0.00020041,2]
[372194754,1752545432383,-609.84008908,0.0002095,2]
[372194756,1752545432392,-207.4,0.00020987,2]
[372194775,1752545432579,-1624.12849017,0.00021,2]
[372194778,1752545432603,-1375.87150983,0.00021,2]
[372194780,1752545432613,-196.5436704,0.00021,2]
[372194782,1752545432623,-300.0,0.00021009,2]
[372194784,1752545432632,-3000.0,0.0002101,2]
[372194786,1752545432641,-90.96847507,0.0002102,2]
[372194790,1752545432671,-1077.901282,0.0002102,2]
[372194831,1752545439093,-1831.13024293,0.0002102,2]
[372194832,1752545439104,-3000.0,0.0002103,2]
[372194833,1752545439113,-3000.0,0.0002104,2]
[372194834,1752545439123,-3000.0,0.0002105,2]
[372194835,1752545439132,-153.617,0.0002105,2]
[372194836,1752545439142,-3000.0,0.0002106,2]
[372194837,1752545439151,-151.0,0.00021067,2]
[372194838,1752545439161,-151.0,0.00021067,2]
[372194839,1752545439172,-151.0,0.00021067,2]
[372194840,1752545439181,-151.0,0.00021067,2]
[372194841,1752545439191,-151.0,0.00021067,2]
[372194842,1752545439201,-151.0,0.00021067,2]
[372194843,1752545439210,-151.0,0.00021067,2]
[372194844,1752545439220,-151.0,0.00021067,2]
[372194845,1752545439229,-264.17391709,0.00021067,2]
[372194846,1752545439238,-3000.0,0.0002107,2]
[372194847,1752545439248,-3382.402573,0.0002108,2]
[372194848,1752545439257,-429.0948676,0.00021233,2]
[372194849,1752545439267,-429.0948676,0.00021233,2]
[372194850,1752545439276,-429.0948676,0.00021233,2]
[372194851,1752545439285,-429.0948676,0.00021233,2]
[372194852,1752545439295,-429.0948676,0.00021233,2]
[372194853,1752545439304,-429.0948676,0.00021233,2]
[372194854,1752545439314,-429.0948676,0.00021233,2]
[372194855,1752545439323,-429.0948676,0.00021233,2]
[372194856,1752545439333,-429.0948676,0.00021233,2]
[372194857,1752545439342,-162.0247555,0.0002137,2]
[372194858,1752545439352,-154.8623264,0.0002137,2]
[372194859,1752545439361,-179.7865509,0.0002137,2]
[372194860,1752545439373,-583.207135,0.0002137,2]
[372194861,1752545439383,-154.784671,0.0002137,2]
[372194862,1752545439393,-159.7039591,0.0002137,2]
[372194863,1752545439404,-576.7692041,0.0002137,2]
[372194864,1752545439415,-177.9926445,0.0002137,2]
[372194865,1752545439425,-177.9926445,0.0002137,2]
[372194866,1752545439434,-153.0,0.0002137,2]
[372194867,1752545439444,-576.7692041,0.0002137,2]
[372194868,1752545439454,-159.7039591,0.0002137,2]
[372194869,1752545439463,-153.0,0.0002137,2]
[372194870,1752545439473,-177.9926445,0.0002137,2]
[372194871,1752545439483,-576.7692041,0.0002137,2]
[372194872,1752545439492,-177.9926445,0.0002137,2]
[372194873,1752545439502,-153.0,0.0002137,2]
[372194874,1752545439511,-153.0,0.0002137,2]
[372194875,1752545439521,-576.7692041,0.0002137,2]
[372194876,1752545439531,-177.9926445,0.0002137,2]
[372194877,1752545439541,-576.7692041,0.0002137,2]
[372194878,1752545439550,-153.0,0.0002137,2]
[372194879,1752545439561,-576.7692041,0.0002137,2]
[372194880,1752545439570,-177.9926445,0.0002137,2]
[372194881,1752545439580,-177.9926445,0.0002137,2]
[372194882,1752545439593,-576.7692041,0.0002137,2]
[372194883,1752545439603,-177.9926445,0.0002137,2]
[372194884,1752545439612,-576.7692041,0.0002137,2]
[372194885,1752545439622,-153.0,0.0002137,2]
[372194886,1752545439634,-153.0,0.00021429,2]
[372194887,1752545439645,-153.0,0.00021429,2]
[372194888,1752545439655,-153.0,0.00021429,2]
[372194889,1752545439670,-153.714468,0.00021452,2]
[372194890,1752545439679,-270.081639,0.00021478,8]
[372194891,1752545439690,-230.76969291,0.00021578,2]
[372194892,1752545439699,-160.0,0.00021781,2]
[372194893,1752545439709,-525.46609069,0.00021781,2]
[372194894,1752545439719,-838.70323114,0.00021781,2]
[372194895,1752545439728,-215.47013733,0.00021781,2]
[372194896,1752545439738,-2000.0,0.000218,3]
[372194897,1752545439748,-424.82628676,0.00021817,2]
[372194898,1752545439757,-9160.53365056,0.00021817,2]
[372194899,1752545439767,-160.667345,0.00021817,2]
[372194900,1752545439776,-596.92724317,0.00021817,2]
[372194902,1752545439786,-596.92724315,0.00021886,2]
[372194904,1752545439795,-1229.37294212,0.000219,6]
[372194905,1752545439806,-209.19,0.00021907,3]
[372194906,1752545439815,-627.59,0.00021907,3]
[372194908,1752545439825,-2559.21,0.00021907,10]
[372194909,1752545439835,-261.86903719,0.00021916,2]
[372194910,1752545439844,-397.42728226,0.00021916,2]
[372194911,1752545439854,-500.0,0.00021916,2]
[372194912,1752545439863,-500.0,0.00021916,2]
[372194913,1752545439873,-500.0,0.00021916,2]
[372194914,1752545439883,-236.14721573,0.00021916,2]
[372194915,1752545439893,-500.0,0.00021916,2]
[372194916,1752545439902,-500.0,0.00021916,2]
[372194917,1752545439911,-500.0,0.00021916,2]
[372194918,1752545439923,-543.65650112,0.00021916,2]
[372194919,1752545439933,-500.0,0.00021916,2]
[372194921,1752545439942,-500.0,0.00021916,2]
[372194923,1752545439952,-500.0,0.00021916,2]
[372194925,1752545439962,-500.0,0.00021916,2]
[372194927,1752545439971,-500.0,0.00021916,2]
[372194929,1752545439981,-500.0,0.00021916,2]
[372194931,1752545439989,-500.0,0.00021916,2]
[372194933,1752545439998,-500.0,0.00021916,2]
[372194935,1752545440008,-500.0,0.00021916,2]
[372194937,1752545440017,-500.0,0.00021916,2]
[372194939,1752545440027,-500.0,0.00021916,2]
[372194941,1752545440036,-500.0,0.00021916,2]
[372194943,1752545440045,-500.0,0.00021916,2]
[372194945,1752545440055,-254.77790188,0.00021916,2]
[372194947,1752545440065,-192.90524619,0.00021916,2]
[372194949,1752545440074,-500.0,0.00021916,2]
[372194951,1752545440083,-500.0,0.00021916,2]
[372194953,1752545440093,-500.0,0.00021916,2]
[372194955,1752545440103,-263.28267873,0.00021916,2]
[372194957,1752545440111,-500.0,0.00021916,2]
[372194959,1752545440121,-500.0,0.00021916,2]
[372194961,1752545440130,-375.18260533,0.00021916,2]
[372194963,1752545440139,-500.0,0.00021916,2]
[372194965,1752545440149,-500.0,0.00021916,2]
[372194967,1752545440159,-500.0,0.00021916,2]
[372194969,1752545440172,-500.0,0.00021916,2]
[372194971,1752545440181,-500.0,0.00021916,2]
[372194973,1752545440190,-249.43032728,0.00021916,2]
[372194975,1752545440200,-500.0,0.00021916,2]
[372194977,1752545440209,-500.0,0.00021916,2]
[372194979,1752545440219,-500.0,0.00021916,2]
[372194981,1752545440228,-500.0,0.00021916,2]
[372194983,1752545440238,-500.0,0.00021916,2]
[372194985,1752545440248,-500.0,0.00021916,2]
[372194987,1752545440257,-500.0,0.00021916,2]
[372194989,1752545440267,-500.0,0.00021916,2]
[372194991,1752545440278,-500.0,0.00021916,2]
[372194993,1752545440288,-500.0,0.00021916,2]
[372194995,1752545440298,-500.0,0.00021916,2]
[372194997,1752545440308,-500.0,0.00021916,2]
[372194999,1752545440317,-500.0,0.00021916,2]
[372195000,1752545440326,-500.0,0.00021916,2]
[372195003,1752545440336,-500.0,0.00021916,2]
[372195004,1752545440345,-500.0,0.00021916,2]
[372195006,1752545440354,-500.0,0.00021916,2]
[372195009,1752545440366,-500.0,0.00021916,2]
[372195011,1752545440376,-500.0,0.00021916,2]
[372195013,1752545440386,-500.0,0.00021916,2]
[372195015,1752545440395,-500.0,0.00021916,2]
[372195017,1752545440405,-500.0,0.00021916,2]
[372195019,1752545440414,-500.0,0.00021916,2]
[372195021,1752545440426,-500.0,0.00021916,2]
[372195023,1752545440436,-500.0,0.00021916,2]
[372195025,1752545440445,-500.0,0.00021916,2]
[372195027,1752545440454,-500.0,0.00021916,2]
[372195029,1752545440464,-500.0,0.00021916,2]
[372195031,1752545440473,-500.0,0.00021916,2]
[372195033,1752545440482,-500.0,0.00021916,2]
[372195035,1752545440491,-500.0,0.00021916,2]
[372195037,1752545440500,-500.0,0.00021916,2]
[372195039,1752545440510,-500.0,0.00021916,2]
[372195041,1752545440518,-319.72545915,0.00021916,2]
[372195043,1752545440528,-500.0,0.00021916,2]
[372195045,1752545440539,-500.0,0.00021916,2]
[372195047,1752545440549,-500.0,0.00021916,2]
[372195049,1752545440558,-500.0,0.00021916,2]
[372195051,1752545440568,-500.0,0.00021916,2]
[372195053,1752545440577,-500.0,0.00021916,2]
[372195055,1752545440588,-500.0,0.00021916,2]
[372195057,1752545440598,-500.0,0.00021916,2]
[372195059,1752545440607,-500.0,0.00021916,2]
[372195061,1752545440616,-500.0,0.00021916,2]
[372195063,1752545440626,-500.0,0.00021916,2]
[372195065,1752545440635,-500.0,0.00021916,2]
[372195066,1752545440644,-500.0,0.00021916,2]
[372195068,1752545440654,-500.0,0.00021916,2]
[372195071,1752545440668,-500.0,0.00021916,2]
[372195073,1752545440678,-500.0,0.00021916,2]
[372195075,1752545440688,-299.99999999,0.00021916,2]
[372195077,1752545440697,-157.747612,0.00021916,2]
[372195079,1752545440707,-151.0,0.00021916,2]
[372195081,1752545440716,-151.0,0.00021916,2]
[372195082,1752545440725,-461.22639106,0.00021917,3]
[372195084,1752545440735,-460.0,0.00021917,3]
[372195086,1752545440745,-285.10075726,0.00021917,3]
[372195088,1752545440754,-460.0,0.00021917,3]
[372195090,1752545440764,-504.61,0.00021917,3]
[372195092,1752545440773,-460.0,0.00021917,3]
[372195094,1752545440783,-460.0,0.00021917,3]
[372195096,1752545440793,-460.0,0.00021917,3]
[372195098,1752545440802,-460.0,0.00021917,3]
[372195100,1752545440812,-460.0,0.00021917,3]
[372195102,1752545440821,-460.0,0.00021917,3]
[372195105,1752545440831,-461.63457517,0.00021917,3]
[372195107,1752545440840,-462.23712093,0.00021917,3]
[372195109,1752545440850,-573.41698392,0.00021917,3]
[372195111,1752545440859,-216.01658458,0.00021917,3]
[372195112,1752545440868,-460.0,0.00021917,3]
[372195114,1752545440878,-460.0,0.00021917,3]
[372195116,1752545440887,-460.0,0.00021917,3]
[372195118,1752545440897,-460.0,0.00021917,3]
[372195120,1752545440907,-460.0,0.00021917,3]
[372195122,1752545440918,-460.0,0.00021917,3]
[372195124,1752545440927,-460.0,0.00021917,3]
[372195126,1752545440937,-463.81719679,0.00021917,3]
[372195128,1752545440947,-153.52056,0.00021917,2]
[372195144,1752545441082,-460.0,0.00021917,3]
[372195146,1752545441096,-460.0,0.00021917,3]
[372195148,1752545441105,-487.07585154,0.00021917,3]
[372195150,1752545441115,-486.87584738,0.00021917,3]
[372195152,1752545441124,-460.0,0.00021917,3]
[372195154,1752545441133,-460.0,0.00021917,3]
[372195156,1752545441143,-460.0,0.00021917,3]
[372195158,1752545441153,-468.15976818,0.00021917,3]
[372195160,1752545441162,-460.0,0.00021917,3]
[372195162,1752545441173,-464.33224259,0.00021917,3]
[372195164,1752545441183,-460.0,0.00021917,3]
[372195166,1752545441192,-463.25031618,0.00021917,3]
[372195168,1752545441201,-460.0,0.00021917,3]
[372195170,1752545441210,-460.0,0.00021917,3]
[372195172,1752545441220,-163.88298345,0.00021917,3]
[372195174,1752545441229,-460.0,0.00021917,3]
[372195176,1752545441239,-463.06506368,0.00021917,3]
[372195178,1752545441248,-460.0,0.00021917,3]
[372195180,1752545441258,-460.0,0.00021917,3]
[372195182,1752545441267,-463.62927125,0.00021917,3]
[372195184,1752545441277,-460.0,0.00021917,3]
[372195186,1752545441286,-460.0,0.00021917,3]
[372195188,1752545441295,-158.468542,0.00021917,2]
[372195190,1752545441304,-151.0,0.00021917,2]
[372195191,1752545441313,-296.722396,0.00021917,2]
[372195192,1752545441323,-460.0,0.00021917,3]
[372195193,1752545441331,-460.0,0.00021917,3]
[372195194,1752545441340,-460.0,0.00021917,3]
[372195195,1752545441349,-460.0,0.00021917,3]
[372195196,1752545441358,-460.0,0.00021917,3]
[372195197,1752545441367,-460.0,0.00021917,3]
[372195198,1752545441375,-461.8449226,0.00021917,3]
[372195199,1752545441384,-271.50452628,0.00021917,3]
[372195200,1752545441393,-254.58801162,0.00021917,3]
[372195201,1752545441403,-460.0,0.00021917,3]
[372195202,1752545441412,-505.4948004,0.00021917,3]
[372195203,1752545441422,-327.32641145,0.00021917,3]
[372195204,1752545441430,-460.0,0.00021917,3]
[372195205,1752545441439,-460.0,0.00021917,3]
[372195206,1752545441448,-460.0,0.00021917,3]
[372195207,1752545441458,-339.15005037,0.00021917,3]
[372195208,1752545441467,-465.53508473,0.00021917,3]
[372195209,1752545441476,-460.0,0.00021917,3]
[372195210,1752545441485,-460.0,0.00021917,3]
[372195211,1752545441495,-460.0,0.00021917,3]
[372195212,1752545441504,-946.32,0.00021917,3]
[372195213,1752545441513,-608.65608777,0.00021917,3]
[372195214,1752545441522,-460.0,0.00021917,3]
[372195215,1752545441531,-460.0,0.00021917,3]
[372195216,1752545441540,-460.0,0.00021917,3]
[372195217,1752545441550,-606.99,0.00021917,3]
[372195218,1752545441560,-470.14756522,0.00021917,3]
[372195219,1752545441569,-463.1162723,0.00021917,3]
[372195220,1752545441579,-460.0,0.00021917,3]
[372195221,1752545441592,-460.0,0.00021917,3]
[372195222,1752545441601,-460.0,0.00021917,3]
[372195223,1752545441610,-469.74922261,0.00021917,3]
[372195224,1752545441619,-464.54965963,0.00021917,3]
[372195225,1752545441629,-460.0,0.00021917,3]
[372195226,1752545441638,-595.77468072,0.00021917,3]
[372195227,1752545441647,-460.0,0.00021917,3]
[372195228,1752545441656,-1166.91,0.00021917,3]
[372195230,1752545441668,-464.494153,0.00021917,3]
[372195232,1752545441678,-460.0,0.00021917,3]
[372195234,1752545441688,-464.12065533,0.00021917,3]
[372195236,1752545441698,-466.17923252,0.00021917,3]
[372195238,1752545441707,-464.07944379,0.00021917,3]
[372195240,1752545441716,-460.0,0.00021917,3]
[372195242,1752545441726,-460.0,0.00021917,3]
[372195244,1752545441736,-249.974537,0.00021917,2]
[372195246,1752545441745,-249.974537,0.00021917,2]
[372195248,1752545441755,-249.974537,0.00021917,2]
[372195250,1752545441765,-249.974537,0.00021917,2]
[372195252,1752545441774,-249.974537,0.00021917,2]
[372195255,1752545441786,-249.974537,0.00021917,2]
[372195257,1752545441795,-249.974537,0.00021917,2]
[372195258,1752545441804,-460.0,0.00021917,3]
[372195260,1752545441814,-249.974537,0.00021917,2]
[372195262,1752545441823,-249.974537,0.00021917,2]
[372195264,1752545441832,-249.974537,0.00021917,2]
[372195266,1752545441842,-249.974537,0.00021917,2]
[372195268,1752545441850,-249.974537,0.00021917,2]
[372195270,1752545441859,-249.974537,0.00021917,2]
[372195272,1752545441869,-249.974537,0.00021917,2]
[372195274,1752545441879,-249.974537,0.00021917,2]
[372195276,1752545441888,-249.974537,0.00021917,2]
[372195278,1752545441899,-249.974537,0.00021917,2]
[372195280,1752545441908,-249.974537,0.00021917,2]
[372195282,1752545441919,-249.974537,0.00021917,2]
[372195284,1752545441928,-460.0,0.00021917,3]
[372195286,1752545441937,-249.974544,0.00021917,2]
[372195288,1752545441947,-463.63190039,0.00021917,3]
[372195290,1752545441957,-185.07810281,0.00021917,3]
[372195292,1752545441966,-460.0,0.00021917,3]
[372195294,1752545441976,-460.0,0.00021917,3]
[372195296,1752545441988,-464.98437126,0.00021917,3]
[372195298,1752545441997,-460.0,0.00021917,3]
[372195300,1752545442008,-462.11749414,0.00021917,3]
[372195302,1752545442017,-151.577912,0.00021917,2]
[372195304,1752545442027,-460.0,0.00021917,3]
[372195306,1752545442036,-460.0,0.00021917,3]
[372195308,1752545442045,-460.0,0.00021917,3]
[372195310,1752545442053,-617.86,0.00021917,3]
[372195312,1752545442062,-1500.0,0.00021917,7]
[372195314,1752545442071,-983.763143,0.00021917,7]
[372195316,1752545442081,-460.0,0.00021917,3]
[372195318,1752545442090,-461.11620815,0.00021917,3]
[372195319,1752545442099,-460.0,0.00021917,3]
[372195321,1752545442109,-460.0,0.00021917,3]
[372195323,1752545442118,-461.79060609,0.00021917,3]
[372195325,1752545442127,-460.85158182,0.00021917,3]
[372195327,1752545442136,-460.0,0.00021917,3]
[372195329,1752545442145,-465.13778548,0.00021917,3]
[372195331,1752545442155,-495.553214,0.00021917,3]
[372195333,1752545442164,-464.6156176,0.00021917,3]
[372195335,1752545442173,-157.10939,0.00021917,2]
[372195337,1752545442183,-460.0,0.00021917,3]
[372195339,1752545442193,-460.0,0.00021917,3]
[372195341,1752545442202,-460.0,0.00021917,3]
[372195343,1752545442211,-460.0,0.00021917,3]
[372195345,1752545442221,-460.0,0.00021917,3]
[372195347,1752545442231,-460.0,0.00021917,3]
[372195349,1752545442240,-462.14492918,0.00021917,3]
[372195351,1752545442249,-460.0,0.00021917,3]
[372195353,1752545442259,-460.0,0.00021917,3]
[372195355,1752545442268,-465.23270516,0.00021917,3]
[372195357,1752545442277,-465.96552411,0.00021917,3]
[372195359,1752545442286,-151.0,0.00021917,2]
[372195361,1752545442295,-396.65598287,0.00021917,3]